bitfinex-derivatives/quotes_BTCF0:USTF0_20251216
["timestamp","ask_amount","ask_price","bid_price","bid_amount"]
[1765918930979,0.02854119,87617.0,87616.0,0.0678559]
[1765918931177,0.3608,87629.0,87627.0,0.0681845]
[1765918931372,0.05714,87647.0,87646.0,0.068182]
[1765918934678,0.4293512,87653.0,87652.0,0.0681812]
[1765918934884,0.41794,87653.0,87652.0,0.0681812]
[1765918936877,0.41894,87653.0,87652.0,0.0681812]
[1765918937771,0.41994,87653.0,87652.0,0.0681812]
[1765918939472,0.05914,87653.0,87652.0,0.0681812]
[1765918940280,0.05814,87653.0,87652.0,0.0681812]
[1765918940679,0.05914,87653.0,87652.0,0.0681812]
[1765918941083,0.05814,87653.0,87652.0,0.0681812]
[1765918941275,0.05814,87653.0,87652.0,0.05677]
[1765918946479,0.05814,87653.0,87652.0,0.0681812]
[1765918947689,0.001,87653.0,87652.0,0.0681812]
[1765918947878,0.0293,87653.0,87652.0,0.0681812]
[1765918948074,0.05814,87653.0,87652.0,0.0681812]
[1765918948989,0.0293,87653.0,87652.0,0.0681812]
[1765918949289,0.001,87653.0,87652.0,0.0681812]
[1765918949489,0.0293,87653.0,87652.0,0.0681812]
[1765918950489,0.001,87653.0,87652.0,0.0681812]
[1765918950682,0.0293,87653.0,87652.0,0.0681812]
[1765918952385,0.0283,87653.0,87652.0,0.0681812]
[1765918953179,0.00017123,87655.0,87654.0,0.068181]
[1765918953479,0.02847123,87655.0,87654.0,0.068181]
[1765918953679,0.05731123,87655.0,87654.0,0.05677]
[1765918954189,0.05731123,87655.0,87654.0,0.068181]
[1765918959187,0.08470777,87655.0,87654.0,0.068181]
[1765918959393,0.05731123,87655.0,87654.0,0.068181]
[1765918959990,0.00017123,87655.0,87654.0,0.068181]
[1765918960698,0.0114096,87665.0,87657.0,0.0667606]
[1765918961197,0.03149161,87658.0,87657.0,0.0667606]
[1765918961496,0.0584308,87658.0,87657.0,0.0667606]
[1765918963099,0.0869708,87658.0,87657.0,0.0667606]
[1765918963600,0.0869878,87658.0,87657.0,0.0667606]
[1765918965595,0.0869878,87658.0,87657.0,0.05535]
[1765918967797,0.0879878,87658.0,87657.0,0.05535]
[1765918969206,0.0302378,87658.0,87657.0,0.05535]
[1765918969407,0.0879878,87658.0,87657.0,0.05535]
[1765918970708,0.0869878,87658.0,87657.0,0.05535]
[1765918971300,0.08698674,87658.0,87657.0,0.05535]
[1765918972308,0.08898674,87658.0,87657.0,0.05535]
[1765918972703,0.08798674,87658.0,87657.0,0.05535]
[1765918972907,0.08898674,87658.0,87657.0,0.05535]
[1765918973512,0.08798674,87658.0,87657.0,0.05535]
[1765918973713,0.08698674,87658.0,87657.0,0.05535]
[1765918973913,0.08798674,87658.0,87657.0,0.05535]
[1765918974507,0.08698674,87658.0,87657.0,0.05535]
[1765918980414,0.02923674,87658.0,87657.0,0.05535]
[1765918981615,0.08698674,87658.0,87657.0,0.05535]
[1765918984316,0.08698674,87658.0,87650.0,0.37804]
[1765918984317,0.0688413,87651.0,87650.0,0.38858]
[1765918984622,0.0688419,87647.0,87646.0,0.05542]
[1765918984820,0.0688429,87639.0,87638.0,0.00017123]
[1765918985022,0.45659803,87639.0,87638.0,0.00017123]
[1765918985711,0.45659803,87639.0,87624.0,0.0391947]
[1765918985712,0.0688447,87625.0,87624.0,0.0391947]
[1765918985919,0.05743,87625.0,87624.0,0.0668347]
[1765918987522,0.05743,87625.0,87624.0,0.0835347]
[1765918989533,0.05743,87633.0,87632.0,0.0668338]
[1765918990232,0.02966,87633.0,87632.0,0.0668338]
[1765918990432,0.41823,87639.0,87638.0,0.066833]
[1765918990831,0.05743,87639.0,87638.0,0.066833]
[1765918991530,0.05760113,87647.0,87646.0,0.066832]
[1765918991730,0.08437085,87647.0,87646.0,0.427632]
[1765918991931,0.05760113,87647.0,87646.0,0.427632]
[1765918992433,0.00017113,87647.0,87646.0,0.427632]
[1765918992727,0.03194161,87658.0,87657.0,0.0668306]
[1765918992923,0.00228161,87658.0,87657.0,0.0668306]
[1765918993329,0.03194161,87658.0,87657.0,0.0668306]
[1765918994430,0.03194161,87658.0,87657.0,0.0678306]
[1765918995035,0.03194161,87658.0,87657.0,0.0668306]
[1765918995235,0.03194161,87658.0,87657.0,0.0678306]
[1765918995433,0.00228161,87658.0,87657.0,0.0678306]
[1765918996434,0.00228161,87658.0,87657.0,0.0668306]
[1765918996631,0.00228161,87658.0,87657.0,0.0678306]
[1765918997238,0.00228161,87658.0,87657.0,0.0668306]
[1765918997447,0.00228161,87658.0,87657.0,0.0678306]
[1765918998137,0.00228161,87658.0,87657.0,0.0688306]
[1765919000626,0.00017113,87666.0,87657.0,0.0688306]
[1765919000627,0.02983113,87666.0,87665.0,0.0668295]
[1765919000937,0.02983113,87666.0,87665.0,0.4276295]
[1765919001144,0.00017113,87666.0,87665.0,0.4276295]
[1765919002544,0.0688376,87680.0,87679.0,0.05542]
[1765919003639,0.0708376,87680.0,87679.0,0.05542]
[1765919004136,0.0698376,87680.0,87679.0,0.05542]
[1765919004330,0.0708376,87680.0,87679.0,0.05542]
[1765919007044,0.0708376,87680.0,87679.0,0.02778]
[1765919007241,0.0708376,87680.0,87679.0,0.05542]
[1765919008344,0.05943,87680.0,87679.0,0.05542]
[1765919009547,0.05843,87680.0,87679.0,0.05542]
[1765919009744,0.05743,87680.0,87679.0,0.05542]
[1765919010143,0.05760113,87688.0,87687.0,0.0668267]
[1765919012233,0.05760113,87688.0,87687.0,0.05542]
[1765919012841,0.05760113,87688.0,87687.0,0.0668267]
[1765919013143,0.05860113,87688.0,87687.0,0.0668267]
[1765919013736,0.05960113,87688.0,87687.0,0.0668267]
[1765919014145,0.05860113,87688.0,87687.0,0.0668267]
[1765919015850,0.05960113,87688.0,87687.0,0.0668267]
[1765919017855,0.07100763,87688.0,87687.0,0.0668267]
[1765919018053,0.07100763,87688.0,87687.0,0.05542]
[1765919018647,0.07100763,87688.0,87687.0,0.0668267]
[1765919018849,0.068567,87684.0,87683.0,0.3608]
[1765919019057,0.0853476,87680.0,87679.0,0.00017113]
[1765919019549,0.0685704,87658.0,87657.0,0.05705]
[1765919020052,0.085681,87654.0,87653.0,0.068461]
[1765919020354,0.05716,87654.0,87653.0,0.068461]
[1765919020546,0.05716,87654.0,87653.0,0.0797446]
[1765919020744,0.05716,87654.0,87653.0,0.068461]
[1765919022156,0.05816,87654.0,87653.0,0.068461]
[1765919022750,0.05716,87654.0,87653.0,0.068461]
[1765919022955,0.03,87654.0,87653.0,0.068461]
[1765919023152,0.00017113,87662.0,87661.0,0.06846]
[1765919023353,0.3608,87686.0,87685.0,0.05705]
[1765919023557,0.07084577,87698.0,87697.0,0.02772]
[1765919023747,0.05716,87686.0,87685.0,0.41785]
[1765919024056,0.05716,87686.0,87685.0,0.4292569]
[1765919026060,0.05716,87686.0,87685.0,0.4302569]
[1765919026558,0.0685668,87686.0,87685.0,0.41885]
[1765919027253,0.05716,87686.0,87685.0,0.41885]
[1765919027449,0.05816,87686.0,87685.0,0.41785]
[1765919028349,0.05916,87686.0,87685.0,0.41785]
[1765919029056,0.05816,87686.0,87685.0,0.41785]
[1765919029560,0.05916,87686.0,87685.0,0.41785]
[1765919029958,0.05916,87686.0,87685.0,0.05705]
[1765919030263,0.05816,87686.0,87685.0,0.05705]
[1765919030460,0.05916,87686.0,87685.0,0.05705]
[1765919030960,0.05816,87686.0,87685.0,0.05705]
[1765919031154,0.05916,87686.0,87685.0,0.05705]
[1765919031550,0.05816,87686.0,87685.0,0.05705]
[1765919031750,0.05916,87686.0,87685.0,0.05705]
[1765919032264,0.05816,87686.0,87685.0,0.05705]
[1765919032651,0.05716,87686.0,87685.0,0.05705]
[1765919033569,0.05816,87686.0,87685.0,0.05705]
[1765919034452,0.05916,87686.0,87685.0,0.05705]
[1765919034858,0.05916,87686.0,87680.0,0.0684575]
[1765919034859,0.05716,87681.0,87680.0,0.0684575]
[1765919035162,0.0856778,87678.0,87677.0,0.40009903]
[1765919035354,0.0856778,87678.0,87677.0,0.41802113]
[1765919035658,0.11222003,87678.0,87677.0,0.00017113]
[1765919036450,0.0685697,87664.0,87663.0,0.0684597]
[1765919036650,0.0685697,87664.0,87663.0,0.02772]
[1765919036860,0.0685697,87664.0,87663.0,0.05705]
[1765919037160,0.0685693,87667.0,87666.0,0.05705]
[1765919038270,0.0695693,87667.0,87666.0,0.05705]
[1765919039169,0.0685693,87667.0,87666.0,0.05705]
[1765919039458,0.0695693,87667.0,87666.0,0.05705]
[1765919039660,0.0705693,87667.0,87666.0,0.05705]
[1765919040360,0.05716,87659.0,87658.0,0.06863153]
[1765919041150,0.05716,87659.0,87658.0,0.03930153]
[1765919041351,0.05716,87659.0,87658.0,0.00017113]
[1765919041562,0.05716,87634.0,87633.0,0.3999337]
[1765919041757,0.0685736,87634.0,87633.0,0.02772]
[1765919043378,0.0685736,87634.0,87633.0,0.05705]
[1765919043379,0.05716,87634.0,87633.0,0.05705]
[1765919043570,0.032,87634.0,87633.0,0.07409]
[1765919043757,0.05916,87634.0,87633.0,0.07409]
[1765919044266,0.05816,87634.0,87633.0,0.05705]
[1765919045159,0.001,87634.0,87633.0,0.07335]
[1765919045372,0.001,87634.0,87633.0,0.43415]
[1765919045666,0.002,87634.0,87633.0,0.43415]
[1765919045864,0.001,87634.0,87633.0,0.43415]
[1765919046066,0.002,87634.0,87633.0,0.43415]
[1765919047270,0.001,87634.0,87633.0,0.43415]
[1765919047460,0.002,87634.0,87633.0,0.43415]
[1765919049174,0.0699736,87634.0,87633.0,0.41785]
[1765919049362,0.0699736,87634.0,87633.0,0.05705]
[1765919049665,0.0699736,87634.0,87633.0,0.02772]
[1765919049871,0.0679739,87631.0,87630.0,0.02897329]
[1765919050574,0.05656,87631.0,87630.0,0.05705329]
[1765919051571,0.05656,87638.0,87637.0,0.0683832]
[1765919052470,0.02944,87638.0,87637.0,0.0683832]
[1765919053271,0.03044,87638.0,87637.0,0.0683832]
[1765919053867,0.002,87638.0,87637.0,0.0683832]
[1765919054872,0.05856,87638.0,87637.0,0.0683832]
[1765919055778,0.002,87638.0,87637.0,0.0683832]
[1765919058568,0.03144,87638.0,87637.0,0.0683832]
[1765919059167,0.05856,87638.0,87637.0,0.0683832]
[1765919060374,0.001,87638.0,87637.0,0.0683832]
[1765919061183,0.00017113,87642.0,87641.0,0.0683826]
[1765919061184,0.02961113,87642.0,87641.0,0.0683826]
[1765919062582,0.00017113,87642.0,87641.0,0.0683826]
[1765919063087,0.00017113,87642.0,87641.0,0.0693826]
[1765919063281,0.02961113,87642.0,87641.0,0.0693826]
[1765919063674,0.05673113,87642.0,87641.0,0.0693826]
[1765919064976,0.05673113,87642.0,87641.0,0.0683826]
[1765919065281,0.05673113,87642.0,87641.0,0.001]
[1765919065584,0.4440731,87642.0,87641.0,0.001]
[1765919065785,0.05656,87631.0,87630.0,0.06846729]
[1765919066793,0.17269468,87640.0,87639.0,0.0683829]
[1765919066794,0.05656,87640.0,87639.0,0.0683829]
[1765919067582,0.07309,87640.0,87639.0,0.0683829]
[1765919067988,0.07409,87640.0,87639.0,0.0683829]
[1765919068189,0.10066057,87640.0,87639.0,0.0683829]
[1765919068588,0.10066057,87640.0,87639.0,0.0114129]
[1765919068789,0.10066057,87640.0,87639.0,0.0683829]
[1765919068998,0.08513057,87640.0,87639.0,0.0683829]
[1765919069499,0.08413057,87640.0,87639.0,0.0683829]
[1765919069696,0.08513057,87640.0,87639.0,0.0683829]
[1765919069896,0.10166057,87640.0,87639.0,0.0683829]
[1765919070994,0.11307337,87640.0,87639.0,0.0683829]
[1765919071393,0.11311079,87640.0,87639.0,0.0683829]
[1765919072091,0.11211079,87640.0,87639.0,0.0683829]
[1765919072286,0.11311079,87640.0,87639.0,0.0683829]
[1765919073190,0.11211079,87640.0,87639.0,0.0683829]
[1765919073386,0.11311079,87640.0,87639.0,0.0683829]
[1765919073592,0.02860799,87640.0,87639.0,0.0683829]
[1765919074499,0.05851799,87640.0,87639.0,0.0683829]
[1765919074704,0.08664799,87640.0,87639.0,0.0683829]
[1765919075004,0.08564799,87640.0,87639.0,0.0683829]
[1765919075898,0.09606079,87640.0,87639.0,0.0683829]
[1765919076697,0.08464799,87640.0,87639.0,0.0683829]
[1765919077609,0.00017113,87642.0,87641.0,0.0693326]
[1765919077807,0.05778113,87642.0,87641.0,0.0693326]
[1765919078006,0.08439248,87642.0,87641.0,0.0693326]
[1765919081209,0.08539248,87642.0,87641.0,0.0693326]
[1765919082111,0.08439248,87642.0,87641.0,0.0693326]
[1765919084908,0.0690229,87639.0,87638.0,0.3608]
[1765919085109,0.05761,87631.0,87630.0,0.06941739]
[1765919086398,0.05761,87631.0,87630.0,0.07041739]
[1765919087108,0.05761,87631.0,87630.0,0.08733739]
[1765919087309,0.05761,87631.0,87630.0,0.08833739]
[1765919088614,0.05761,87631.0,87630.0,0.08733739]
[1765919088816,0.05761,87631.0,87630.0,0.08833739]
[1765919089012,0.05761,87631.0,87630.0,0.08733739]
[1765919090903,0.05761,87631.0,87630.0,0.08633739]
[1765919091108,0.05761,87631.0,87630.0,0.08733739]
[1765919092621,0.05761,87631.0,87630.0,0.08633739]
[1765919092826,0.05761,87631.0,87630.0,0.08733739]
[1765919093415,0.05761,87631.0,87630.0,0.07041739]
[1765919093618,0.05761,87631.0,87630.0,0.08733739]
[1765919095519,0.05761,87631.0,87630.0,0.08633739]
[1765919096322,0.05761,87631.0,87630.0,0.06941739]
[1765919096517,0.05761,87631.0,87630.0,0.05800329]
[1765919096814,0.05761,87631.0,87630.0,8.329e-05]
[1765919097316,0.05761,87631.0,87630.0,0.00108329]
[1765919097916,0.05761,87631.0,87630.0,0.02957329]
[1765919098116,0.05861,87631.0,87630.0,0.02857329]
[1765919098713,0.05961,87631.0,87630.0,0.05800329]
[1765919099617,0.002,87631.0,87630.0,0.07492329]
[1765919100222,0.05961,87631.0,87630.0,0.05800329]
[1765919100520,0.002,87631.0,87630.0,0.07492329]
[1765919101023,0.001,87631.0,87630.0,0.07692329]
[1765919101414,0.05778113,87642.0,87641.0,0.05792]
[1765919101614,0.05778113,87642.0,87641.0,0.4301326]
[1765919104426,0.05759,87631.0,87630.0,0.07422329]
[1765919104727,0.05759,87631.0,87630.0,0.05730329]
[1765919105628,0.05759,87631.0,87630.0,0.05830329]
[1765919106728,0.05759,87631.0,87630.0,0.05930329]
[1765919108130,0.05759,87631.0,87630.0,0.00208329]
[1765919109030,0.05759,87631.0,87630.0,0.02978329]
[1765919109324,0.05759,87631.0,87630.0,0.05930329]
[1765919110025,0.05759,87631.0,87630.0,0.05730329]
[1765919110228,0.05959,87631.0,87630.0,8.329e-05]
[1765919110528,0.44696543,87631.0,87630.0,0.05730329]
[1765919110726,0.08616543,87631.0,87630.0,0.05730329]
[1765919111318,0.08516543,87631.0,87630.0,0.05730329]
[1765919111524,0.08616543,87631.0,87630.0,0.05730329]
[1765919112825,0.08516543,87631.0,87630.0,0.05730329]
[1765919113133,0.08616543,87631.0,87630.0,0.07495329]
[1765919113319,0.05959,87631.0,87630.0,0.07495329]
[1765919114324,0.08617343,87631.0,87630.0,0.07495329]
[1765919114525,0.08517343,87631.0,87630.0,0.07495329]
[1765919114718,0.08417343,87631.0,87630.0,0.07495329]
[1765919114928,0.05859,87631.0,87630.0,0.07495329]
[1765919117531,0.05759,87631.0,87630.0,0.43575329]
[1765919117741,0.00017113,87642.0,87641.0,0.0686326]
[1765919118031,0.00017113,87642.0,87641.0,0.7902326]
[1765919118223,0.05776113,87642.0,87641.0,0.7902326]
[1765919118425,0.05776113,87642.0,87641.0,0.77882]
[1765919119027,0.05776113,87642.0,87641.0,0.41802]
[1765919119332,0.05776113,87642.0,87641.0,0.42002]
[1765919119536,0.05776113,87642.0,87641.0,0.05922]
[1765919119837,0.05776113,87642.0,87641.0,0.05822]
[1765919120133,0.05776113,87642.0,87634.0,0.3722135]
[1765919120134,0.05759,87635.0,87634.0,0.41802]
[1765919120338,0.0851546,87626.0,87625.0,0.00017113]
[1765919120531,0.0851546,87626.0,87622.0,0.04764852]
[1765919120532,0.069005,87623.0,87622.0,0.04764852]
[1765919120839,0.0955771,87623.0,87622.0,0.0140982]
[1765919121131,0.0870055,87619.0,87618.0,0.00228265]
[1765919121336,0.11369845,87619.0,87618.0,0.00228265]
[1765919122833,0.11469845,87619.0,87618.0,0.00228265]
[1765919123032,0.11469845,87619.0,87618.0,0.02998265]
[1765919123430,0.11569845,87619.0,87618.0,0.05950265]
[1765919124036,0.11469845,87619.0,87618.0,0.02998265]
[1765919124236,0.11569845,87619.0,87618.0,0.02998265]
[1765919124440,0.08912635,87619.0,87618.0,0.02998265]
[1765919125546,0.08812635,87619.0,87618.0,0.02998265]
[1765919125743,0.08912635,87619.0,87618.0,0.02998265]
[1765919126336,0.08812635,87619.0,87618.0,0.02998265]
[1765919126541,0.08912635,87619.0,87618.0,0.02998265]
[1765919126939,0.07112635,87619.0,87618.0,0.05950265]
[1765919127739,0.05971085,87619.0,87618.0,0.05950265]
[1765919129240,0.05871085,87619.0,87618.0,0.05950265]
[1765919129445,0.05771085,87619.0,87618.0,0.05950265]
[1765919129653,0.00012085,87619.0,87618.0,0.05950265]
[1765919130750,0.0690039,87632.0,87631.0,0.05722]
[1765919131546,0.05759,87632.0,87631.0,0.05722]
[1765919131745,0.05759,87640.0,87639.0,0.02952]
[1765919131947,0.10211465,87640.0,87639.0,0.08674]
[1765919132248,0.10211465,87640.0,87639.0,0.05722]
[1765919132447,0.0690038,87632.0,87631.0,0.05739113]
[1765919132943,0.0690038,87632.0,87631.0,0.05839113]
[1765919133550,0.0690038,87632.0,87631.0,0.05739113]
[1765919134548,0.05759,87632.0,87631.0,0.05739113]
[1765919137654,0.02865,87632.0,87631.0,0.05739113]
[1765919137857,0.05484,87641.0,87640.0,0.0689428]
[1765919138046,0.08137639,87641.0,87640.0,0.0689428]
[1765919138246,0.05484,87641.0,87640.0,0.0689428]
[1765919140251,0.05484,87641.0,87640.0,0.0857328]
[1765919140654,0.0114118,87648.0,87641.0,0.05753]
[1765919141047,0.02723113,87642.0,87641.0,0.05753]
[1765919142557,0.05501113,87642.0,87641.0,0.05753]
[1765919143759,0.05501113,87642.0,87641.0,0.05853]
[1765919145963,0.05501113,87642.0,87641.0,0.05753]
[1765919146155,0.05501113,87642.0,87641.0,0.05853]
[1765919146757,0.05501113,87642.0,87641.0,0.05753]
[1765919147460,0.07237113,87642.0,87641.0,0.05753]
[1765919147657,0.05501113,87642.0,87641.0,0.05753]
[1765919151462,0.05501113,87642.0,87641.0,0.05853]
[1765919151769,0.05501113,87642.0,87641.0,0.41933]
[1765919152366,0.05501113,87642.0,87641.0,0.41833]
[1765919153070,0.02723113,87642.0,87641.0,0.41833]
[1765919153270,0.02723113,87642.0,87641.0,0.41933]
[1765919153466,0.00017113,87642.0,87641.0,0.41933]
[1765919156664,0.21116502,87651.0,87650.0,0.05753]
[1765919156862,0.05484,87651.0,87650.0,0.05753]
[1765919157063,0.08097552,87651.0,87650.0,0.05753]
[1765919157262,0.05484,87651.0,87650.0,0.05753]
[1765919157462,0.0809832,87651.0,87650.0,0.05753]
[1765919158169,0.0809832,87651.0,87650.0,0.0689415]
[1765919158364,0.0809832,87651.0,87650.0,0.0857315]
[1765919158566,0.0532032,87651.0,87650.0,0.0857315]
[1765919158769,0.02706,87651.0,87650.0,0.0857315]
[1765919159073,0.05484,87651.0,87650.0,0.0857315]
[1765919159273,0.00017113,87659.0,87650.0,0.0857315]
[1765919159274,0.05501113,87659.0,87658.0,0.0689404]
[1765919159458,0.08116079,87659.0,87658.0,0.0689404]
[1765919161965,0.08116079,87659.0,87658.0,0.05753]
[1765919162275,0.08116079,87659.0,87658.0,0.0689404]
[1765919162775,0.08216079,87659.0,87658.0,0.0689404]
[1765919163476,0.08316079,87659.0,87658.0,0.0689404]
[1765919164268,0.08216079,87659.0,87658.0,0.0689404]
[1765919164569,0.08316079,87659.0,87658.0,0.0689404]
[1765919165370,0.08216079,87659.0,87658.0,0.0689404]
[1765919165676,0.08116079,87659.0,87658.0,0.0689404]
[1765919165872,0.08216079,87659.0,87658.0,0.0689404]
[1765919166079,0.08316079,87659.0,87658.0,0.0689404]
[1765919171181,0.08316079,87659.0,87650.0,0.01696113]
[1765919171182,0.0861333,87636.0,87635.0,0.01412]
[1765919171377,0.47308296,87636.0,87635.0,0.01412]
[1765919171981,0.0693555,87619.0,87618.0,0.00228265]
[1765919172186,0.09550516,87619.0,87618.0,0.00228265]
[1765919172585,0.0693566,87611.0,87610.0,0.00017113]
[1765919172782,0.0693566,87611.0,87594.0,0.3608]
[1765919172783,0.05794,87595.0,87594.0,0.3608]
[1765919172975,0.05794,87584.0,87583.0,0.4300202]
[1765919174791,0.05894,87584.0,87583.0,0.4330202]
[1765919175572,0.05894,87584.0,87583.0,0.4360202]
[1765919176283,0.03026,87584.0,87583.0,0.4360202]
[1765919177883,0.05894,87584.0,87583.0,0.4360202]
[1765919180397,0.001,87584.0,87583.0,0.4360202]
[1765919181287,0.03026,87584.0,87583.0,0.4360202]
[1765919181984,0.05894,87584.0,87583.0,0.4360202]
[1765919184592,0.05894,87584.0,87583.0,0.4072002]
[1765919184593,0.07572,87584.0,87583.0,0.4072002]
[1765919184800,0.07572,87584.0,87583.0,0.3782202]
[1765919185182,0.0871401,87584.0,87583.0,0.39578]
[1765919185382,0.05894,87584.0,87583.0,0.4246]
[1765919192587,0.05894,87584.0,87583.0,0.0638]
[1765919192799,0.05894,87584.0,87583.0,0.03498]
[1765919192989,0.05894,87584.0,87583.0,0.006]
[1765919194692,0.05894,87584.0,87583.0,0.06245]
[1765919195294,0.05894,87584.0,87583.0,0.006]
[1765919195693,0.05894,87584.0,87583.0,0.03374]
[1765919196103,0.05894,87584.0,87583.0,0.006]
[1765919196602,0.05894,87584.0,87583.0,0.06115]
[1765919196799,0.05894,87584.0,87583.0,0.006]
[1765919197301,0.05894,87584.0,87583.0,0.06115]
[1765919197494,0.05894,87584.0,87583.0,0.006]
[1765919197689,0.05894,87584.0,87583.0,0.06115]
[1765919198302,0.05974,87584.0,87583.0,0.06115]
[1765919199602,0.05874,87584.0,87583.0,0.06015]
[1765919200304,0.08536725,87584.0,87583.0,0.06015]
[1765919200693,0.08536725,87584.0,87583.0,0.05915]
[1765919201399,0.08536725,87584.0,87583.0,0.004]
[1765919201606,0.08536725,87584.0,87583.0,0.05915]
[1765919203905,0.08536725,87584.0,87583.0,0.004]
[1765919205195,0.05805,87579.0,87578.0,0.00228369]
[1765919205506,0.09609795,87579.0,87578.0,0.05743369]
[1765919206006,0.09609795,87579.0,87578.0,0.00228369]
[1765919206404,0.09709795,87579.0,87578.0,0.00528369]
[1765919206907,0.09709795,87579.0,87578.0,0.07385459]
[1765919209599,0.09709795,87579.0,87578.0,0.01870459]
[1765919209800,0.09709795,87579.0,87578.0,0.00728369]
[1765919211609,0.09709795,87579.0,87578.0,0.01870459]
[1765919212113,0.09709795,87579.0,87578.0,0.00728369]
[1765919213310,0.15868807,87579.0,87578.0,0.00728369]
[1765919213510,0.09709795,87579.0,87578.0,0.00728369]
[1765919213910,0.05805,87577.0,87576.0,0.00014702]
[1765919214111,0.0694726,87565.0,87564.0,0.05515]
[1765919214309,0.0694726,87565.0,87563.0,0.3608]
[1765919214310,0.05805,87559.0,87558.0,0.0665734]
[1765919214511,0.08467725,87559.0,87558.0,0.0665734]
[1765919215112,0.09619404,87559.0,87558.0,0.0665734]
[1765919215318,0.08477074,87559.0,87558.0,0.0665734]
[1765919215816,0.08477074,87559.0,87558.0,0.0836934]
[1765919216207,0.02672074,87559.0,87558.0,0.0836934]
[1765919216602,9.349e-05,87559.0,87558.0,0.0876934]
[1765919216807,0.00017124,87573.0,87572.0,0.0665716]
[1765919217008,0.02656199,87573.0,87572.0,0.0665716]
[1765919217813,0.00022477,87573.0,87572.0,0.0665716]
[1765919218112,0.00122477,87573.0,87572.0,0.0675716]
[1765919218910,0.00122477,87573.0,87572.0,0.0695716]
[1765919220419,0.05805,87590.0,87589.0,0.0388294]
[1765919220621,0.08443605,87590.0,87589.0,0.4273694]
[1765919220815,0.02638605,87590.0,87589.0,0.4273694]
[1765919221012,0.02638605,87590.0,87589.0,0.43869562]
[1765919221219,0.05647454,87602.0,87601.0,0.0665679]
[1765919221417,0.05428381,87602.0,87601.0,0.0665679]
[1765919221919,0.08442927,87602.0,87601.0,0.0665679]
[1765919222316,0.08442927,87602.0,87601.0,0.05515]
[1765919222714,0.08642927,87602.0,87601.0,0.05515]
[1765919222916,0.08642927,87602.0,87601.0,0.02774]
[1765919223119,0.05805,87601.0,87600.0,0.4273679]
[1765919223314,0.05494927,87601.0,87600.0,0.4273679]
[1765919223517,0.08442927,87601.0,87600.0,0.4273679]
[1765919224527,0.08542927,87601.0,87600.0,0.3722179]
[1765919224729,0.08542927,87601.0,87600.0,0.3608]
[1765919225025,0.02733,87598.0,87597.0,0.0677283]
[1765919225216,0.02833,87601.0,87600.0,0.067728]
[1765919225417,0.08308693,87601.0,87600.0,0.067728]
[1765919225922,0.08208693,87601.0,87600.0,0.067728]
[1765919226125,0.05773,87601.0,87600.0,0.067728]
[1765919226516,0.05573,87601.0,87600.0,0.067728]
[1765919226716,0.05673,87601.0,87600.0,0.067728]
[1765919227722,0.05573,87601.0,87600.0,0.067728]
[1765919229330,0.05473,87601.0,87600.0,0.067728]
[1765919229633,0.05673,87601.0,87600.0,0.067728]
[1765919229928,0.05573,87601.0,87600.0,0.067728]
[1765919230328,0.05673,87601.0,87600.0,0.067728]
[1765919231422,0.05573,87601.0,87600.0,0.067728]
[1765919231622,0.05673,87601.0,87600.0,0.067728]
[1765919232430,0.05573,87601.0,87600.0,0.067728]
[1765919232629,0.05673,87601.0,87600.0,0.067728]
[1765919233731,0.0681479,87601.0,87600.0,0.067728]
[1765919233929,0.05673,87601.0,87600.0,0.039088]
[1765919234228,0.02933,87601.0,87600.0,0.085398]
[1765919234825,0.05673,87601.0,87600.0,0.085398]
[1765919235130,0.05773,87601.0,87600.0,0.085398]
[1765919235631,0.05673,87601.0,87600.0,0.067728]
[1765919236431,0.05573,87601.0,87600.0,0.085398]
[1765919237227,0.05673,87601.0,87600.0,0.085398]
[1765919238134,0.05573,87601.0,87600.0,0.085398]
[1765919238336,0.05673,87601.0,87600.0,0.085398]
[1765919239236,0.05573,87601.0,87600.0,0.085398]
[1765919239436,0.05673,87601.0,87600.0,0.085398]
[1765919240141,0.05673,87601.0,87600.0,0.067728]
[1765919240726,0.05573,87601.0,87600.0,0.067728]
[1765919240927,0.05673,87601.0,87600.0,0.067728]
[1765919241530,0.02933,87601.0,87600.0,0.085398]
[1765919241740,0.05673,87601.0,87600.0,0.085398]
[1765919242731,0.05573,87601.0,87600.0,0.085398]
[1765919242927,0.05673,87601.0,87600.0,0.085398]
[1765919243544,0.05490124,87610.0,87609.0,0.0677268]
[1765919243735,0.08088868,87610.0,87609.0,0.0677268]
[1765919244530,0.08088868,87610.0,87606.0,0.01767]
[1765919244531,0.0661471,87607.0,87606.0,0.0677271]
[1765919244737,0.09213454,87607.0,87606.0,0.0677271]
[1765919245647,0.08271744,87607.0,87606.0,0.0677271]
[1765919246646,0.08371744,87607.0,87606.0,0.0677271]
[1765919247138,0.08271744,87607.0,87606.0,0.0677271]
[1765919247648,0.08171744,87607.0,87606.0,0.0677271]
[1765919247841,0.08271744,87607.0,87606.0,0.0677271]
[1765919248244,0.08171744,87607.0,87606.0,0.0677271]
[1765919248442,0.08271744,87607.0,87606.0,0.0677271]
[1765919249642,0.08171744,87607.0,87606.0,0.0677271]
[1765919249838,0.08271744,87607.0,87606.0,0.0677271]
[1765919254549,0.02798744,87607.0,87606.0,0.0677271]
[1765919254752,0.02798744,87607.0,87606.0,0.4285271]
[1765919255250,0.08507744,87607.0,87606.0,0.4285271]
[1765919255443,0.08407744,87607.0,87606.0,0.4285271]
[1765919255649,0.08507744,87607.0,87606.0,0.4285271]
[1765919256354,0.08307744,87607.0,87606.0,0.4285271]
[1765919256750,0.08307744,87607.0,87606.0,0.41711]
[1765919256954,0.08407744,87607.0,87606.0,0.41711]
[1765919257354,0.08307744,87607.0,87606.0,0.41711]
[1765919257556,0.08407744,87607.0,87606.0,0.05631]
[1765919257748,0.08407744,87607.0,87606.0,0.02767]
[1765919258351,0.08407744,87607.0,87606.0,0.05654]
[1765919258553,0.08507744,87607.0,87606.0,0.05654]
[1765919259057,0.08607744,87607.0,87606.0,0.05654]
[1765919259262,0.08507744,87607.0,87606.0,0.05654]
[1765919259457,0.08707744,87607.0,87606.0,0.05654]
[1765919260158,0.08307744,87607.0,87606.0,0.05654]
[1765919260459,0.08707744,87607.0,87606.0,0.05654]
[1765919260655,0.09849454,87607.0,87606.0,0.05654]
[1765919261251,0.09649454,87607.0,87606.0,0.05654]
[1765919261451,0.09849454,87607.0,87606.0,0.05654]
[1765919261741,0.09749454,87607.0,87606.0,0.05654]